{"text_format":"1","workbook":"xlsx","n_sheets":1,"sheets":["Planificateur de budget"],"not_rendered":{"charts":1,"images":0,"macros":0,"external_links":0,"defined_names":1,"comments":0,"pivot_tables":0},"unopened":[],"bounds":{"document_bytes":16777216,"sheet_cells":100000,"rows_first":2000,"rows_last":500,"rows_between":2000,"halvings":0,"cell_chars":16384,"cell_head_chars":4096},"cells_cut":0,"cells_raw":0,"read":"whole","date_system":"1900"}

{"sheet":"Planificateur de budget","index":0,"n_rows":21,"n_cols":6,"rows_kept":21,"cut":false,"hidden":false,"merged":[]}
[]
[]
[null,"Budget par catégorie"]
[null,"Catégories","Budget planifié","Budget en détail","Disponible / (excédent)"]
[null,"Transports",750,{"$f":"SUMIF(Tableau2[Catégorie],Tableau1[[#This Row],[Catégories]],Tableau2[Montant])","v":720},{"$f":"IFERROR(Tableau1[[#This Row],[Budget planifié]]-Tableau1[[#This Row],[Budget en détail]],\"\")","v":30}]
[null,"Hébergement",250,{"$f":"SUMIF(Tableau2[Catégorie],Tableau1[[#This Row],[Catégories]],Tableau2[Montant])","v":300},{"$f":"IFERROR(Tableau1[[#This Row],[Budget planifié]]-Tableau1[[#This Row],[Budget en détail]],\"\")","v":-50}]
[null,"Nourriture",100,{"$f":"SUMIF(Tableau2[Catégorie],Tableau1[[#This Row],[Catégories]],Tableau2[Montant])","v":80},{"$f":"IFERROR(Tableau1[[#This Row],[Budget planifié]]-Tableau1[[#This Row],[Budget en détail]],\"\")","v":20}]
[null,"Activités",500,{"$f":"SUMIF(Tableau2[Catégorie],Tableau1[[#This Row],[Catégories]],Tableau2[Montant])","v":500},{"$f":"IFERROR(Tableau1[[#This Row],[Budget planifié]]-Tableau1[[#This Row],[Budget en détail]],\"\")","v":0}]
[null,"Souvenirs",50,{"$f":"SUMIF(Tableau2[Catégorie],Tableau1[[#This Row],[Catégories]],Tableau2[Montant])","v":0},{"$f":"IFERROR(Tableau1[[#This Row],[Budget planifié]]-Tableau1[[#This Row],[Budget en détail]],\"\")","v":50}]
[null,"Autres",50,{"$f":"SUMIF(Tableau2[Catégorie],Tableau1[[#This Row],[Catégories]],Tableau2[Montant])","v":0},{"$f":"IFERROR(Tableau1[[#This Row],[Budget planifié]]-Tableau1[[#This Row],[Budget en détail]],\"\")","v":50}]
[null,"Réserve pour imprévus",200,{"$f":"SUMIF(Tableau2[Catégorie],Tableau1[[#This Row],[Catégories]],Tableau2[Montant])","v":0},{"$f":"IFERROR(Tableau1[[#This Row],[Budget planifié]]-Tableau1[[#This Row],[Budget en détail]],\"\")","v":200}]
[null,"Budget total",{"$f":"SUBTOTAL(109,Tableau1[Budget planifié])","v":1900},{"$f":"SUBTOTAL(109,Tableau1[Budget en détail])","v":1600},{"$f":"SUBTOTAL(109,Tableau1[Disponible / (excédent)])","v":300}]
[]
[null,"Détail des dépenses"]
[null,"Description","Catégorie","Quantité","Coût unitaire","Montant"]
[null,"Avion","Transports",2,300,{"$f":"IFERROR(Tableau2[[#This Row],[Quantité]]*Tableau2[[#This Row],[Coût unitaire]],\"\")","v":600}]
[null,"Bus et Taxi, 2 jours","Transports",4,30,{"$f":"IFERROR(Tableau2[[#This Row],[Quantité]]*Tableau2[[#This Row],[Coût unitaire]],\"\")","v":120}]
[null,"Hôtel (2 nuits)","Hébergement",2,150,{"$f":"IFERROR(Tableau2[[#This Row],[Quantité]]*Tableau2[[#This Row],[Coût unitaire]],\"\")","v":300}]
[null,"Nourriture, 2 jours","Nourriture",2,40,{"$f":"IFERROR(Tableau2[[#This Row],[Quantité]]*Tableau2[[#This Row],[Coût unitaire]],\"\")","v":80}]
[null,"Jour 1, tickets de concert","Activités",2,250,{"$f":"IFERROR(Tableau2[[#This Row],[Quantité]]*Tableau2[[#This Row],[Coût unitaire]],\"\")","v":500}]
[null,"Entrez autres dépenses",null,null,null,{"$f":"IFERROR(Tableau2[[#This Row],[Quantité]]*Tableau2[[#This Row],[Coût unitaire]],\"\")","v":0}]